[Event "*** Titled Tuesday Blitz"]
[Site "Chess.com"]
[Date "2020.04.14"]
[Round "8"]
[White "HashtagChess"]
[Black "flomarechot"]
[Result "1-0"]
[WhiteElo "1653"]
[BlackElo "2153"]
[TimeControl "180+1"]
[EndTime "11:29:25 PDT"]
[Termination "HashtagChess won by checkmate"]

1. e4 {[%clk 0:03:00.9]} 1... e5 {[%clk 0:02:59.5]} 2. Nf3 {[%clk 0:02:59.4]}
2... Nc6 {[%clk 0:02:58.6]} 3. Bb5 {[%clk 0:02:55.9]} 3... Nf6 {[%clk
0:02:55.7]} 4. Qe2 {[%clk 0:02:50.1]} 4... d6 {[%clk 0:02:50.6]} 5. c3 {[%clk
0:02:43.2]} 5... Bd7 {[%clk 0:02:46.6]} 6. Ba4 {[%clk 0:02:34.7]} 6... Be7
{[%clk 0:02:45.2]} 7. O-O {[%clk 0:02:29.7]} 7... O-O {[%clk 0:02:45.4]} 8. Bc2
{[%clk 0:02:10.8]} 8... a6 {[%clk 0:02:38.6]} 9. Rd1 {[%clk 0:02:08.4]} 9... Bg4
{[%clk 0:02:24.4]} 10. d4 {[%clk 0:01:56.8]} 10... Qc8 {[%clk 0:02:03.7]} 11.
Bg5 {[%clk 0:01:51.6]} 11... h6 {[%clk 0:01:57]} 12. Bh4 {[%clk 0:01:51.2]}
12... g5 {[%clk 0:01:43.3]} 13. Bg3 {[%clk 0:01:50.8]} 13... Nh5 {[%clk
0:01:42.6]} 14. d5 {[%clk 0:01:38]} 14... Nxg3 {[%clk 0:01:40.3]} 15. fxg3
{[%clk 0:01:31.8]} 15... Nd8 {[%clk 0:01:22.4]} 16. Nbd2 {[%clk 0:01:25.1]}
16... f5 {[%clk 0:01:22]} 17. exf5 {[%clk 0:01:18.5]} 17... Bxf5 {[%clk
0:01:20.1]} 18. Ne4 {[%clk 0:01:10.6]} 18... Nf7 {[%clk 0:00:57.3]} 19. Rf1
{[%clk 0:01:06.7]} 19... g4 {[%clk 0:00:44.7]} 20. Nfd2 {[%clk 0:01:00.5]} 20...
Ng5 {[%clk 0:00:43.9]} 21. Rf2 {[%clk 0:00:38.3]} 21... Nxe4 {[%clk 0:00:38.8]}
22. Nxe4 {[%clk 0:00:37.1]} 22... Bxe4 {[%clk 0:00:34.7]} 23. Bxe4 {[%clk
0:00:35.4]} 23... h5 {[%clk 0:00:31.6]} 24. Raf1 {[%clk 0:00:34.5]} 24... Qd7
{[%clk 0:00:20]} 25. Bf5 {[%clk 0:00:25.6]} 25... Qb5 {[%clk 0:00:17.5]} 26.
Be6+ {[%clk 0:00:25]} 26... Kg7 {[%clk 0:00:16.7]} 27. Rf7+ {[%clk 0:00:20.2]}
27... Rxf7 {[%clk 0:00:16.4]} 28. Rxf7+ {[%clk 0:00:21.1]} 28... Kg6 {[%clk
0:00:16.2]} 29. Qe4+ {[%clk 0:00:20.2]} 29... Kh6 {[%clk 0:00:15]} 30. Qh7+
{[%clk 0:00:19.6]} 30... Kg5 {[%clk 0:00:13.9]} 31. Qg7# {[%clk 0:00:20.2]} 1-0

[Event "*** Titled Tuesday Blitz"]
[Site "Chess.com"]
[Date "2020.04.14"]
[Round "8"]
[White "Spring199"]
[Black "regular_legs"]
[Result "0-1"]
[WhiteElo "2317"]
[BlackElo "2517"]
[TimeControl "180+1"]
[EndTime "11:29:26 PDT"]
[Termination "regular_legs won on time"]

1. d4 {[%clk 0:03:00.9]} 1... Nf6 {[%clk 0:02:59.6]} 2. c4 {[%clk 0:03:00.2]}
2... g6 {[%clk 0:02:58.8]} 3. Nc3 {[%clk 0:02:59.7]} 3... d5 {[%clk 0:02:59]} 4.
cxd5 {[%clk 0:02:59.4]} 4... Nxd5 {[%clk 0:02:59.9]} 5. e4 {[%clk 0:02:59.6]}
5... Nxc3 {[%clk 0:03:00]} 6. bxc3 {[%clk 0:03:00.5]} 6... Bg7 {[%clk
0:03:00.9]} 7. Nf3 {[%clk 0:03:00.2]} 7... c5 {[%clk 0:03:00.4]} 8. Bb5+ {[%clk
0:02:59.4]} 8... Nc6 {[%clk 0:02:59.5]} 9. O-O {[%clk 0:02:57.8]} 9... O-O
{[%clk 0:02:55.9]} 10. d5 {[%clk 0:02:45.4]} 10... Ne5 {[%clk 0:02:51.2]} 11.
Nxe5 {[%clk 0:02:41.7]} 11... Bxe5 {[%clk 0:02:52.1]} 12. Qc2 {[%clk 0:02:34.5]}
12... Qa5 {[%clk 0:02:45.2]} 13. a4 {[%clk 0:02:07.6]} 13... Qxc3 {[%clk
0:02:40]} 14. Qxc3 {[%clk 0:02:05]} 14... Bxc3 {[%clk 0:02:40.9]} 15. Ra3 {[%clk
0:02:04.5]} 15... Bd4 {[%clk 0:02:40.8]} 16. Bh6 {[%clk 0:02:00.9]} 16... Rd8
{[%clk 0:02:39.8]} 17. Rd1 {[%clk 0:01:57.4]} 17... a6 {[%clk 0:02:35.7]} 18.
Be2 {[%clk 0:01:55.6]} 18... Bd7 {[%clk 0:02:20.8]} 19. Bg5 {[%clk 0:01:53.1]}
19... f6 {[%clk 0:02:17.9]} 20. Bf4 {[%clk 0:01:43.1]} 20... b5 {[%clk
0:02:16.3]} 21. Ra2 {[%clk 0:01:24.9]} 21... e5 {[%clk 0:02:12.7]} 22. Bh6
{[%clk 0:01:12.4]} 22... Kf7 {[%clk 0:02:10.3]} 23. Rb1 {[%clk 0:01:09.3]} 23...
Rdb8 {[%clk 0:02:06.6]} 24. h4 {[%clk 0:01:07.5]} 24... bxa4 {[%clk 0:02:04]}
25. Rc1 {[%clk 0:01:02.7]} 25... Ke7 {[%clk 0:01:59.8]} 26. Bc4 {[%clk
0:00:56.5]} 26... Kd6 {[%clk 0:01:58.1]} 27. Bg7 {[%clk 0:00:55.9]} 27... f5
{[%clk 0:01:50.1]} 28. exf5 {[%clk 0:00:45.8]} 28... gxf5 {[%clk 0:01:51]} 29.
Re2 {[%clk 0:00:44.2]} 29... a3 {[%clk 0:01:37.2]} 30. Rce1 {[%clk 0:00:22.7]}
30... Rb4 {[%clk 0:01:32]} 31. Ba2 {[%clk 0:00:14.5]} 31... Rb2 {[%clk
0:01:31.4]} 32. Bb1 {[%clk 0:00:06.9]} 32... Rxe2 {[%clk 0:01:29.9]} 33. Rxe2
{[%clk 0:00:06.5]} 33... e4 {[%clk 0:01:30.3]} 34. Bh6 {[%clk 0:00:03.2]} 34...
Bb5 {[%clk 0:01:30]} 35. Rd2 {[%clk 0:00:02.2]} 35... Bc4 {[%clk 0:01:27.1]} 36.
Bf4+ {[%clk 0:00:01.2]} 36... Kxd5 {[%clk 0:01:27]} 37. h5 {[%clk 0:00:02.1]}
37... Bd3 {[%clk 0:01:12.8]} 38. g4 {[%clk 0:00:03]} 38... Bxb1 {[%clk
0:01:11.7]} 39. gxf5 {[%clk 0:00:03.1]} 39... a2 {[%clk 0:01:10.7]} 0-1

[Event "*** Titled Tuesday Blitz"]
[Site "Chess.com"]
[Date "2020.04.14"]
[Round "8"]
[White "floplover"]
[Black "dsanchez1973"]
[Result "1/2-1/2"]
[WhiteElo "2277"]
[BlackElo "2094"]
[TimeControl "180+1"]
[EndTime "11:29:26 PDT"]
[Termination "Game drawn by agreement"]

1. d4 {[%clk 0:03:00.9]} 1... d5 {[%clk 0:02:59.9]} 2. c4 {[%clk 0:03:00.8]}
2... c6 {[%clk 0:03:00.3]} 3. Nc3 {[%clk 0:03:00.7]} 3... e6 {[%clk 0:03:00.9]}
4. Nf3 {[%clk 0:02:50.2]} 4... dxc4 {[%clk 0:03:01]} 5. g3 {[%clk 0:02:50.2]}
5... Nf6 {[%clk 0:03:00.1]} 6. Bg2 {[%clk 0:02:50.4]} 6... Be7 {[%clk
0:02:57.5]} 7. O-O {[%clk 0:02:50.2]} 7... O-O {[%clk 0:02:57.6]} 8. e4 {[%clk
0:02:50.4]} 8... Nbd7 {[%clk 0:02:56.6]} 9. Qe2 {[%clk 0:02:39.8]} 9... b5
{[%clk 0:02:56.1]} 10. e5 {[%clk 0:02:32.6]} 10... Nd5 {[%clk 0:02:55.7]} 11. a4
{[%clk 0:02:30.9]} 11... Nxc3 {[%clk 0:02:52.1]} 12. bxc3 {[%clk 0:02:30.5]}
12... Nb6 {[%clk 0:02:49.8]} 13. axb5 {[%clk 0:01:59]} 13... cxb5 {[%clk
0:02:49.7]} 14. Ng5 {[%clk 0:01:55.9]} 14... Bxg5 {[%clk 0:02:43.5]} 15. Bxa8
{[%clk 0:01:46.5]} 15... Nxa8 {[%clk 0:02:43]} 16. Rxa7 {[%clk 0:01:45.8]} 16...
Bxc1 {[%clk 0:02:36.1]} 17. Rxa8 {[%clk 0:01:38.5]} 17... Bg5 {[%clk 0:02:30.5]}
18. Qe4 {[%clk 0:01:21.8]} 18... Qc7 {[%clk 0:02:21.7]} 19. Rfa1 {[%clk
0:01:16.6]} 19... Bb7 {[%clk 0:02:21.5]} 20. Rxf8+ {[%clk 0:01:12]} 20... Kxf8
{[%clk 0:02:20.9]} 21. Ra7 {[%clk 0:00:40.8]} 21... Bxe4 {[%clk 0:02:20.8]} 22.
Rxc7 {[%clk 0:00:41.7]} 22... Bd2 {[%clk 0:02:20.5]} 23. Rc8+ {[%clk 0:00:32.4]}
23... Ke7 {[%clk 0:02:20]} 24. Rb8 {[%clk 0:00:33.3]} 24... Bxc3 {[%clk
0:02:19.6]} 25. Rxb5 {[%clk 0:00:32.1]} 25... Bxd4 {[%clk 0:02:18.6]} 26. Rb4
{[%clk 0:00:30.5]} 26... Bd5 {[%clk 0:02:16.5]} 27. Kf1 {[%clk 0:00:29.5]} 27...
Bxe5 {[%clk 0:02:12]} 28. Ke2 {[%clk 0:00:29.8]} 28... Bd6 {[%clk 0:02:11.6]}
29. Ra4 {[%clk 0:00:28.7]} 29... c3 {[%clk 0:02:09.6]} 30. Rh4 {[%clk
0:00:27.8]} 30... h6 {[%clk 0:02:08.4]} 31. Kd3 {[%clk 0:00:27.7]} 31... Be5
{[%clk 0:02:02.5]} 32. Rb4 {[%clk 0:00:27.3]} 32... Bg2 {[%clk 0:01:42.4]} 33.
f4 {[%clk 0:00:26.8]} 33... Bf6 {[%clk 0:01:41]} 34. Ra4 {[%clk 0:00:25]} 34...
Bh3 {[%clk 0:01:40.1]} 35. Ra7+ {[%clk 0:00:23.9]} 35... Kd6 {[%clk 0:01:39.6]}
36. Rxf7 {[%clk 0:00:23.4]} 36... Bf5+ {[%clk 0:01:39.7]} 37. Ke2 {[%clk
0:00:23.1]} 37... c2 {[%clk 0:01:39.8]} 38. Kd2 {[%clk 0:00:18.2]} 38... Bb2
{[%clk 0:01:36.5]} 39. Rxf5 {[%clk 0:00:17.2]} 39... exf5 {[%clk 0:01:36.8]} 40.
Kxc2 {[%clk 0:00:18.1]} 40... Bd4 {[%clk 0:01:35.7]} 41. h3 {[%clk 0:00:16.1]}
41... Kd5 {[%clk 0:01:34.1]} 42. Kd3 {[%clk 0:00:15.6]} 42... Bf2 {[%clk
0:01:34.3]} 43. g4 {[%clk 0:00:15.7]} 43... g6 {[%clk 0:01:30.2]} 44. Ke2 {[%clk
0:00:12.3]} 44... Bc5 {[%clk 0:01:26.6]} 45. Kf3 {[%clk 0:00:13.2]} 45... Kd4
{[%clk 0:01:25.7]} 46. h4 {[%clk 0:00:11.5]} 46... Kd3 {[%clk 0:01:25.6]} 47. h5
{[%clk 0:00:09.3]} 47... gxh5 {[%clk 0:01:24.9]} 48. gxf5 {[%clk 0:00:08.8]}
48... Be7 {[%clk 0:01:23.9]} 49. Kg3 {[%clk 0:00:08.2]} 49... Ke4 {[%clk
0:01:23.5]} 50. f6 {[%clk 0:00:07.3]} 50... Bxf6 {[%clk 0:01:23.4]} 51. f5
{[%clk 0:00:07.5]} 51... h4+ {[%clk 0:01:21.3]} 52. Kh3 {[%clk 0:00:08.4]} 52...
Kf3 {[%clk 0:01:21.5]} 53. Kh2 {[%clk 0:00:08.3]} 53... Kg4 {[%clk 0:01:19.7]}
54. Kg2 {[%clk 0:00:08.1]} 54... h3+ {[%clk 0:01:19.7]} 55. Kh2 {[%clk
0:00:08.3]} 55... Be5+ {[%clk 0:01:19]} 56. Kh1 {[%clk 0:00:07.7]} 56... Kg3
{[%clk 0:01:19.3]} 57. f6 {[%clk 0:00:08]} 1/2-1/2

[Event "*** Titled Tuesday Blitz"]
[Site "Chess.com"]
[Date "2020.04.14"]
[Round "8"]
[White "Ziachess74"]
[Black "nickmatta"]
[Result "1-0"]
[WhiteElo "2516"]
[BlackElo "2310"]
[TimeControl "180+1"]
[EndTime "11:29:27 PDT"]
[Termination "Ziachess74 won by resignation"]

1. d4 {[%clk 0:02:59.4]} 1... d5 {[%clk 0:02:59.7]} 2. Bf4 {[%clk 0:02:56.9]}
2... Nf6 {[%clk 0:02:58.9]} 3. e3 {[%clk 0:02:56.8]} 3... c5 {[%clk 0:02:59.3]}
4. c3 {[%clk 0:02:52.9]} 4... Nc6 {[%clk 0:02:59.4]} 5. Nd2 {[%clk 0:02:50.4]}
5... e6 {[%clk 0:02:59.8]} 6. Ngf3 {[%clk 0:02:49.3]} 6... Bd6 {[%clk
0:02:59.5]} 7. Bg3 {[%clk 0:02:46.7]} 7... Qc7 {[%clk 0:02:56]} 8. dxc5 {[%clk
0:02:42.9]} 8... Bxg3 {[%clk 0:02:53]} 9. hxg3 {[%clk 0:02:43]} 9... O-O {[%clk
0:02:50.4]} 10. Qc2 {[%clk 0:02:30.3]} 10... e5 {[%clk 0:02:49]} 11. O-O-O
{[%clk 0:02:07.5]} 11... Qe7 {[%clk 0:02:43]} 12. e4 {[%clk 0:02:01.6]} 12... d4
{[%clk 0:02:28.3]} 13. cxd4 {[%clk 0:01:49.8]} 13... exd4 {[%clk 0:02:28.8]} 14.
a3 {[%clk 0:01:34.4]} 14... Bg4 {[%clk 0:02:21.3]} 15. Bd3 {[%clk 0:01:32.5]}
15... Rac8 {[%clk 0:02:18.8]} 16. e5 {[%clk 0:01:26.5]} 16... Nxe5 {[%clk
0:02:06.7]} 17. Bxh7+ {[%clk 0:01:26]} 17... Kh8 {[%clk 0:02:06.8]} 18. Bf5+
{[%clk 0:01:11.8]} 18... Kg8 {[%clk 0:02:04.5]} 19. Bxc8 {[%clk 0:01:05.5]}
19... Rxc8 {[%clk 0:02:04.2]} 20. Kb1 {[%clk 0:00:47.1]} 20... Rxc5 {[%clk
0:02:02.9]} 21. Qa4 {[%clk 0:00:46.2]} 21... Bf5+ {[%clk 0:01:59.4]} 22. Ka1
{[%clk 0:00:44.5]} 22... Bc2 {[%clk 0:01:55.3]} 23. Qxd4 {[%clk 0:00:40.5]}
23... Bxd1 {[%clk 0:01:53]} 24. Rxd1 {[%clk 0:00:35]} 24... Nxf3 {[%clk
0:01:45.7]} 25. gxf3 {[%clk 0:00:18.3]} 25... Rd5 {[%clk 0:01:46]} 26. Qb4
{[%clk 0:00:14.3]} 26... Qe2 {[%clk 0:01:43.5]} 27. Rc1 {[%clk 0:00:07.5]} 27...
Qxd2 {[%clk 0:01:40.1]} 28. Rc8+ {[%clk 0:00:06.9]} 28... Rd8 {[%clk 0:01:35.5]}
29. Qxd2 {[%clk 0:00:05.8]} 29... Rxc8 {[%clk 0:01:35.5]} 30. g4 {[%clk
0:00:06.2]} 30... Rc6 {[%clk 0:01:13.5]} 31. g5 {[%clk 0:00:06.1]} 31... Nh5
{[%clk 0:01:14.1]} 32. Qd8+ {[%clk 0:00:06]} 32... Kh7 {[%clk 0:01:14.7]} 33.
Qd7 {[%clk 0:00:06.3]} 33... Kg6 {[%clk 0:01:13.6]} 34. Qxb7 {[%clk 0:00:06]}
34... Re6 {[%clk 0:01:14.5]} 35. Qxa7 {[%clk 0:00:05.6]} 35... Re1+ {[%clk
0:01:15.1]} 36. Ka2 {[%clk 0:00:05.5]} 36... Re6 {[%clk 0:01:16]} 37. Qd4 {[%clk
0:00:05.1]} 37... Nf4 {[%clk 0:01:16.9]} 38. Qxf4 {[%clk 0:00:05.1]} 38... f5
{[%clk 0:01:17.8]} 39. gxf6 {[%clk 0:00:04.3]} 39... Rxf6 {[%clk 0:01:18.6]} 40.
Qe4+ {[%clk 0:00:04.5]} 40... Kf7 {[%clk 0:01:19.5]} 41. a4 {[%clk 0:00:05.3]}
41... Kf8 {[%clk 0:01:20.1]} 42. a5 {[%clk 0:00:06]} 42... Ra6 {[%clk
0:01:20.9]} 43. Qb4+ {[%clk 0:00:05.3]} 43... Kf7 {[%clk 0:01:18.2]} 44. Ka3
{[%clk 0:00:06.2]} 44... Rf6 {[%clk 0:01:18.4]} 45. Ka4 {[%clk 0:00:07.1]} 45...
Rxf3 {[%clk 0:01:19.1]} 46. Kb5 {[%clk 0:00:07.1]} 46... Rf5+ {[%clk 0:01:19.3]}
47. Ka4 {[%clk 0:00:07.1]} 47... Rxf2 {[%clk 0:01:19.4]} 48. Qb3+ {[%clk
0:00:07.9]} 48... Kg6 {[%clk 0:01:18.4]} 49. a6 {[%clk 0:00:08.8]} 49... Rf4+
{[%clk 0:01:17.8]} 50. Ka5 {[%clk 0:00:08.3]} 50... Rf5+ {[%clk 0:01:18]} 51.
Qb5 {[%clk 0:00:09.2]} 51... Rf2 {[%clk 0:01:16.2]} 52. a7 {[%clk 0:00:09.4]}
1-0

[Event "*** Titled Tuesday Blitz"]
[Site "Chess.com"]
[Date "2020.04.14"]
[Round "8"]
[White "Nitzan_Steinberg"]
[Black "Zavgorodniy_Serg"]
[Result "0-1"]
[WhiteElo "2896"]
[BlackElo "2765"]
[TimeControl "180+1"]
[EndTime "11:29:29 PDT"]
[Termination "Zavgorodniy_Serg won by resignation"]

1. e4 {[%clk 0:03:00.9]} 1... e5 {[%clk 0:02:59.8]} 2. Nf3 {[%clk 0:03:00.8]}
2... d6 {[%clk 0:03:00.1]} 3. d4 {[%clk 0:03:00.5]} 3... exd4 {[%clk 0:03:00.7]}
4. Nxd4 {[%clk 0:03:00]} 4... Nf6 {[%clk 0:03:01.1]} 5. Nc3 {[%clk 0:03:00.3]}
5... Be7 {[%clk 0:03:01.1]} 6. Be2 {[%clk 0:03:00.7]} 6... O-O {[%clk
0:03:01.2]} 7. Bf4 {[%clk 0:03:00.9]} 7... Nc6 {[%clk 0:02:57.9]} 8. O-O {[%clk
0:02:47.9]} 8... Nxd4 {[%clk 0:02:52.6]} 9. Qxd4 {[%clk 0:02:47.3]} 9... Bd7
{[%clk 0:02:52.5]} 10. Rad1 {[%clk 0:02:45.3]} 10... Bc6 {[%clk 0:02:52]} 11.
Rfe1 {[%clk 0:02:44]} 11... Nd7 {[%clk 0:02:51.7]} 12. Qd2 {[%clk 0:02:42.1]}
12... Bf6 {[%clk 0:02:50.9]} 13. Bc4 {[%clk 0:02:38]} 13... Re8 {[%clk
0:02:48.6]} 14. f3 {[%clk 0:02:32]} 14... h6 {[%clk 0:02:21.1]} 15. Kh1 {[%clk
0:02:27.2]} 15... Be5 {[%clk 0:02:16.8]} 16. Bb3 {[%clk 0:02:03.5]} 16... Qf6
{[%clk 0:02:06.9]} 17. Bxe5 {[%clk 0:01:56.3]} 17... Rxe5 {[%clk 0:01:58.2]} 18.
Nd5 {[%clk 0:01:52.6]} 18... Bxd5 {[%clk 0:01:55.1]} 19. Bxd5 {[%clk 0:01:53.5]}
19... Rb8 {[%clk 0:01:08.8]} 20. Qd4 {[%clk 0:01:52.7]} 20... b6 {[%clk
0:01:00.3]} 21. Qc3 {[%clk 0:01:43]} 21... c5 {[%clk 0:00:50.6]} 22. Rd2 {[%clk
0:01:36]} 22... Rd8 {[%clk 0:00:37.9]} 23. Red1 {[%clk 0:01:35.2]} 23... Nf8
{[%clk 0:00:36.1]} 24. Qe3 {[%clk 0:01:22.7]} 24... g5 {[%clk 0:00:35.7]} 25. g3
{[%clk 0:01:18]} 25... Ng6 {[%clk 0:00:35.7]} 26. Kg2 {[%clk 0:01:17.4]} 26...
Rde8 {[%clk 0:00:32.4]} 27. Bc4 {[%clk 0:01:13.8]} 27... Rd8 {[%clk 0:00:25.3]}
28. c3 {[%clk 0:01:13.3]} 28... h5 {[%clk 0:00:23.6]} 29. a4 {[%clk 0:01:12.6]}
29... h4 {[%clk 0:00:23.7]} 30. Rd5 {[%clk 0:01:03.7]} 30... Kg7 {[%clk
0:00:21.6]} 31. Be2 {[%clk 0:00:55.7]} 31... Rxd5 {[%clk 0:00:20.6]} 32. Rxd5
{[%clk 0:00:56.6]} 32... hxg3 {[%clk 0:00:20.4]} 33. hxg3 {[%clk 0:00:56.3]}
33... Ne5 {[%clk 0:00:20.3]} 34. f4 {[%clk 0:00:51.6]} 34... gxf4 {[%clk
0:00:19.4]} 0-1

[Event "*** Titled Tuesday Blitz"]
[Site "Chess.com"]
[Date "2020.04.14"]
[Round "8"]
[White "gui_borba"]
[Black "hazy13"]
[Result "0-1"]
[WhiteElo "2330"]
[BlackElo "2204"]
[TimeControl "180+1"]
[EndTime "11:29:29 PDT"]
[Termination "hazy13 won by resignation"]

1. d4 {[%clk 0:02:43.3]} 1... d5 {[%clk 0:02:59.6]} 2. Bf4 {[%clk 0:02:43.6]}
2... Nf6 {[%clk 0:02:59.6]} 3. e3 {[%clk 0:02:43.3]} 3... c5 {[%clk 0:02:59.9]}
4. dxc5 {[%clk 0:02:42.5]} 4... Nc6 {[%clk 0:02:57.8]} 5. Bb5 {[%clk 0:02:42.8]}
5... e6 {[%clk 0:02:47.9]} 6. b4 {[%clk 0:02:42.1]} 6... a5 {[%clk 0:02:46.6]}
7. c3 {[%clk 0:02:42.3]} 7... Bd7 {[%clk 0:02:45.1]} 8. Nf3 {[%clk 0:02:37.1]}
8... axb4 {[%clk 0:02:42.5]} 9. Bxc6 {[%clk 0:02:37.6]} 9... Bxc6 {[%clk
0:02:43.4]} 10. cxb4 {[%clk 0:02:38.2]} 10... b6 {[%clk 0:02:44.1]} 11. Nc3
{[%clk 0:02:12.7]} 11... bxc5 {[%clk 0:02:36]} 12. b5 {[%clk 0:02:12.9]} 12...
Qa5 {[%clk 0:02:36.4]} 13. bxc6 {[%clk 0:02:11.2]} 13... Qxc3+ {[%clk
0:02:33.2]} 14. Kf1 {[%clk 0:02:05.7]} 14... Be7 {[%clk 0:02:23.2]} 15. g4
{[%clk 0:01:54.3]} 15... O-O {[%clk 0:02:12.5]} 16. g5 {[%clk 0:01:53.8]} 16...
Ne4 {[%clk 0:02:11.9]} 17. h4 {[%clk 0:01:45.1]} 17... Qb2 {[%clk 0:01:53.9]}
18. Rh2 {[%clk 0:01:34.2]} 18... Nc3 {[%clk 0:01:42.8]} 19. Qe1 {[%clk
0:01:30.1]} 19... Ne4 {[%clk 0:01:14.8]} 20. h5 {[%clk 0:01:23.5]} 20... Qb5+
{[%clk 0:01:12.4]} 21. Kg2 {[%clk 0:01:18.7]} 21... Qxc6 {[%clk 0:01:12.8]} 22.
g6 {[%clk 0:01:17.2]} 22... h6 {[%clk 0:01:08.7]} 23. gxf7+ {[%clk 0:01:07.6]}
23... Rxf7 {[%clk 0:01:02.6]} 24. Ne5 {[%clk 0:01:07.5]} 24... Qb7 {[%clk
0:01:02.4]} 25. Nxf7 {[%clk 0:01:06.9]} 25... Kxf7 {[%clk 0:01:03.3]} 26. Qe2
{[%clk 0:01:03.5]} 26... d4 {[%clk 0:01:01]} 27. Qf3 {[%clk 0:01:03.2]} 27...
Kg8 {[%clk 0:00:57.3]} 28. Rhh1 {[%clk 0:00:53.4]} 28... d3 {[%clk 0:00:54.2]}
29. Rab1 {[%clk 0:00:49.9]} 29... Qd5 {[%clk 0:00:53.7]} 30. Rhd1 {[%clk
0:00:38]} 30... Rxa2 {[%clk 0:00:51.9]} 31. Rb8+ {[%clk 0:00:37]} 31... Kh7
{[%clk 0:00:49.8]} 32. Bg3 {[%clk 0:00:36.1]} 32... Bd6 {[%clk 0:00:37.3]} 33.
Rdb1 {[%clk 0:00:19.2]} 33... Bxg3 {[%clk 0:00:27.1]} 34. Rh8+ {[%clk
0:00:16.6]} 34... Kxh8 {[%clk 0:00:24]} 35. Rb8+ {[%clk 0:00:17.5]} 35... Kh7
{[%clk 0:00:24.5]} 36. Qf8 {[%clk 0:00:17.8]} 36... Rxf2+ {[%clk 0:00:23]} 37.
Kh3 {[%clk 0:00:15]} 37... Rxf8 {[%clk 0:00:22.1]} 0-1

[Event "*** Titled Tuesday Blitz"]
[Site "Chess.com"]
[Date "2020.04.14"]
[Round "8"]
[White "GMKrikor"]
[Black "NiranjanNavalgund"]
[Result "1-0"]
[WhiteElo "2687"]
[BlackElo "2431"]
[TimeControl "180+1"]
[EndTime "11:29:30 PDT"]
[Termination "GMKrikor won by resignation"]

1. e4 {[%clk 0:03:00.9]} 1... e5 {[%clk 0:02:57.2]} 2. Nf3 {[%clk 0:02:55.8]}
2... Nc6 {[%clk 0:02:55.1]} 3. Bc4 {[%clk 0:02:48.2]} 3... Nf6 {[%clk
0:02:54.5]} 4. d3 {[%clk 0:02:43.7]} 4... h6 {[%clk 0:02:54.5]} 5. O-O {[%clk
0:02:41.7]} 5... d6 {[%clk 0:02:54.7]} 6. c3 {[%clk 0:02:37.8]} 6... g5 {[%clk
0:02:54.4]} 7. a4 {[%clk 0:02:35]} 7... a6 {[%clk 0:02:49]} 8. b4 {[%clk
0:02:33.8]} 8... Bg7 {[%clk 0:02:48.8]} 9. Re1 {[%clk 0:02:33.1]} 9... O-O
{[%clk 0:02:44.7]} 10. Nfd2 {[%clk 0:01:56.4]} 10... Ne7 {[%clk 0:02:39.8]} 11.
Nf1 {[%clk 0:01:54.3]} 11... d5 {[%clk 0:02:39.6]} 12. Bb3 {[%clk 0:01:49.2]}
12... dxe4 {[%clk 0:02:39.2]} 13. dxe4 {[%clk 0:01:50.1]} 13... Qxd1 {[%clk
0:02:38.8]} 14. Bxd1 {[%clk 0:01:51]} 14... Be6 {[%clk 0:02:38]} 15. Bc2 {[%clk
0:01:49.2]} 15... Rfd8 {[%clk 0:02:38.1]} 16. Ne3 {[%clk 0:01:48.9]} 16... Rd7
{[%clk 0:02:34.8]} 17. Nd2 {[%clk 0:01:47.7]} 17... Rad8 {[%clk 0:02:34.1]} 18.
Ndc4 {[%clk 0:01:47.8]} 18... Ng6 {[%clk 0:02:33.5]} 19. g3 {[%clk 0:01:45.8]}
19... Ng4 {[%clk 0:02:33]} 20. Kg2 {[%clk 0:01:39]} 20... Nxe3+ {[%clk
0:02:32.3]} 21. Nxe3 {[%clk 0:01:38.3]} 21... Ne7 {[%clk 0:02:33.2]} 22. a5
{[%clk 0:01:35.2]} 22... Bf8 {[%clk 0:02:29.6]} 23. Bb2 {[%clk 0:01:20.2]} 23...
Rd2 {[%clk 0:02:28.8]} 24. Rad1 {[%clk 0:01:18]} 24... Rxd1 {[%clk 0:02:28.9]}
25. Rxd1 {[%clk 0:01:11.7]} 25... Rxd1 {[%clk 0:02:28.3]} 26. Bxd1 {[%clk
0:01:12.6]} 26... Nc8 {[%clk 0:02:24.1]} 27. Be2 {[%clk 0:00:59]} 27... Nd6
{[%clk 0:02:23.4]} 28. Bd3 {[%clk 0:00:54.6]} 28... c6 {[%clk 0:02:23.1]} 29. c4
{[%clk 0:00:53.4]} 29... f6 {[%clk 0:02:22.1]} 30. c5 {[%clk 0:00:52.2]} 30...
Nb5 {[%clk 0:02:22]} 31. f4 {[%clk 0:00:40.5]} 31... gxf4 {[%clk 0:02:21.1]} 32.
gxf4 {[%clk 0:00:41.4]} 32... exf4 {[%clk 0:02:20.7]} 33. Nc4 {[%clk 0:00:40.9]}
33... Kf7 {[%clk 0:02:16]} 34. Kf3 {[%clk 0:00:38.7]} 34... h5 {[%clk
0:02:14.6]} 35. Kxf4 {[%clk 0:00:34.4]} 35... Bh6+ {[%clk 0:02:14.7]} 36. Kg3
{[%clk 0:00:34.1]} 36... Ke7 {[%clk 0:02:09.2]} 37. Be2 {[%clk 0:00:27.6]} 37...
Bxc4 {[%clk 0:02:08]} 38. Bxc4 {[%clk 0:00:27.1]} 38... Bd2 {[%clk 0:02:08.9]}
39. Be2 {[%clk 0:00:11.7]} 39... Be1+ {[%clk 0:02:00.7]} 40. Kf4 {[%clk
0:00:09.1]} 40... h4 {[%clk 0:02:00.6]} 41. Kf5 {[%clk 0:00:09]} 41... Bxb4
{[%clk 0:01:54.2]} 42. Bxf6+ {[%clk 0:00:08.6]} 42... Ke8 {[%clk 0:01:54.7]} 43.
Bh5+ {[%clk 0:00:05.9]} 43... Kf8 {[%clk 0:01:51.5]} 44. e5 {[%clk 0:00:04]}
44... Nd4+ {[%clk 0:01:48.7]} 45. Ke4 {[%clk 0:00:03.7]} 45... Ne6 {[%clk
0:01:48]} 46. Bxh4 {[%clk 0:00:03]} 46... Bxc5 {[%clk 0:01:47.9]} 47. Kf5 {[%clk
0:00:03]} 47... Ng7+ {[%clk 0:01:47.6]} 48. Kg6 {[%clk 0:00:03.4]} 48... Nxh5
{[%clk 0:01:47.8]} 49. Kxh5 {[%clk 0:00:03.7]} 49... Bd4 {[%clk 0:01:41.6]} 50.
Bf6 {[%clk 0:00:02.1]} 50... c5 {[%clk 0:01:41.1]} 51. Kg4 {[%clk 0:00:02]}
51... c4 {[%clk 0:01:40.6]} 52. Kf3 {[%clk 0:00:02.4]} 52... Kf7 {[%clk
0:01:36.8]} 53. Ke4 {[%clk 0:00:02.5]} 53... Ba1 {[%clk 0:01:36.4]} 54. h4
{[%clk 0:00:02.7]} 54... Ke6 {[%clk 0:01:36.5]} 55. h5 {[%clk 0:00:03.1]} 55...
c3 {[%clk 0:01:36.6]} 56. Kd3 {[%clk 0:00:02]} 56... c2 {[%clk 0:01:36.6]} 57.
Kxc2 {[%clk 0:00:02.2]} 57... Bxe5 {[%clk 0:01:37.2]} 58. Bxe5 {[%clk 0:00:02]}
58... Kxe5 {[%clk 0:01:38.1]} 59. Kd3 {[%clk 0:00:02.9]} 59... Kf5 {[%clk
0:01:38.6]} 60. Kd4 {[%clk 0:00:03.4]} 60... Kg5 {[%clk 0:01:39.1]} 61. Kc5
{[%clk 0:00:04.1]} 61... Kxh5 {[%clk 0:01:39.7]} 62. Kb6 {[%clk 0:00:04.7]}
62... Kg6 {[%clk 0:01:40.3]} 63. Kxb7 {[%clk 0:00:05.4]} 63... Kf6 {[%clk
0:01:40.8]} 64. Kxa6 {[%clk 0:00:06]} 64... Ke6 {[%clk 0:01:41.5]} 65. Kb7
{[%clk 0:00:06.7]} 65... Kd7 {[%clk 0:01:41.7]} 66. a6 {[%clk 0:00:07.6]} 1-0